[Event "26th Abu Dhabi Master 2019"]
[Site "Abu Dhabi"]
[Date "2019.08.07"]
[Round "6.49"]
[White "Mendonca, Leon Luke"]
[Black "Bartel, Marta"]
[Result "1-0"]
[ECO "A48"]
[WhiteElo "2401"]
[BlackElo "2260"]
[Annotator "NA"]
[PlyCount "93"]
[EventDate "2019.08.02"]
[EventType "swiss"]
[EventCountry "UAE"]
[SourceTitle "playchess.com"]
[Source "ChessBase"]
[SourceQuality "1"]
[TimeControl "5400+30"]

1. d4 Nf6 2. Nf3 g6 3. Bf4 Bg7 4. e3 O-O 5. h3 d6 6. Be2 c5 7. c3 b6 8. O-O Bb7 9. a4 a6 10. Nbd2 Nbd7 11. Bh2 Rc8 12. Re1 Rc7 13. Bd3 e5 14. e4 cxd4 15. cxd4 Qe7 16. Nc4 Ne8 17. Ne3 Nef6 18. Nc4 Ne8 19. dxe5 dxe5 20. Bf1 Rc6 21. b4 Nd6 22. Ne3 Rd8 23. Nd5 Qf8 24. Qb3 Rcc8 25. Rad1 Kh8 26. h4 f6 27. Nd2 a5 28. Nc4 Nxc4 29. Bxc4 axb4 30. Bb5 Bxd5 31. Rxd5 Nc5 32. Qxb4 Rxd5 33. exd5 Qd6 34. Bc6 Qc7 35. Rb1 Nd7 36. Qe7 Rd8 37. Bg3 Bf8 38. Qf7 Bg7 39. a5 Qd6 40. axb6 Nb8 41. Qc7 Na6 42. Qxd6 Rxd6 43. f3 Bf8 44. b7 Rd8 45. f4 exf4 46. Bxf4 Nb8 47. Bc7 1-0

[Event "26th Abu Dhabi Master 2019"]
[Site "Abu Dhabi"]
[Date "2019.08.07"]
[Round "6.50"]
[White "Kulkarni, Rakesh"]
[Black "Ayyad, Husain"]
[Result "1-0"]
[ECO "C44"]
[WhiteElo "2360"]
[BlackElo "2231"]
[Annotator "NA"]
[PlyCount "129"]
[EventDate "2019.08.02"]
[EventType "swiss"]
[EventCountry "UAE"]
[SourceTitle "playchess.com"]
[Source "ChessBase"]
[SourceQuality "1"]
[TimeControl "5400+30"]

1. e4 {[%emt 0:00:00]} e5 {[%emt 0:06:51]} 2. Nf3 {[%emt 0:00:00]} Nc6 {[%emt 0:00:26]} 3. d4 {[%emt 0:00:00]} exd4 {[%emt 0:00:09]} 4. Nxd4 {[%emt 0:00:00]} Nf6 {[%emt 0:00:43]} 5. Nc3 {[%emt 0:00:00]} Bb4 {[%emt 0:00:12]} 6. Nxc6 {[%emt 0:00:01]} bxc6 {[%emt 0:00:05]} 7. Bd3 {[%emt 0:00:05]} d5 {[%emt 0:00:10]} 8. exd5 {[%emt 0:00:14]} cxd5 {[%emt 0:00:01]} 9. O-O {[%emt 0:00:10]} O-O {[%emt 0:00:04]} 10. Bg5 {[%emt 0:00:04]} c6 {[%emt 0:00:07]} 11. Qf3 {[%emt 0:00:25]} Bd6 {[%emt 0:02:47]} 12. h3 {[%emt 0:00:38]} Rb8 {[%emt 0:00:08]} 13. b3 {[%emt 0:00:07]} h6 {[%emt 0:00:21]} 14. Bxf6 {[%emt 0:00:28]} Qxf6 {[%emt 0:00:05]} 15. Qxf6 {[%emt 0:00:03]} gxf6 {[%emt 0:00:00]} 16. Ne2 {[%emt 0:00:06]} Bd7 {[%emt 0:01:51]} 17. Rad1 {[%emt 0:00:41]} a5 {[%emt 0:02:33]} 18. Nd4 {[%emt 0:04:10]} Be5 {[%emt 0:08:37]} 19. Ne2 {[%emt 0:17:18]} a4 {[%emt 0:07:10]} 20. f4 {[%emt 0:01:44]} Bb2 {[%emt 0:05:50]} 21. Ng3 {[%emt 0:21:47]} Rfe8 {[%emt 0:03:23]} 22. Bf5 {[%emt 0:02:14]} Be6 {[%emt 0:16:19]} 23. Rd3 {[%emt 0:03:09]} c5 {[%emt 0:06:18]} 24. Bxe6 {[%emt 0:22:26]} fxe6 {[%emt 0:01:51]} 25. f5 {[%emt 0:03:10]} Bd4+ {[%emt 0:03:10]} 26. Kh1 {[%emt 0:00:46]} e5 {[%emt 0:00:07]} 27. Nh5 {[%emt 0:00:16]} Kf7 {[%emt 0:01:03]} 28. c3 {[%emt 0:18:20]} axb3 {[%emt 0:02:19]} 29. cxd4 {[%emt 0:03:33]} b2 {[%emt 0:03:40]} 30. dxe5 {[%emt 0:00:06]} Rxe5 {[%emt 0:03:39]} 31. Rb1 {[%emt 0:00:28]} c4 {[%emt 0:00:07]} 32. Rc3 {[%emt 0:00:18]} Rxf5 {[%emt 0:01:32]} 33. Ng3 {[%emt 0:00:04]} Re5 {[%emt 0:00:04]} 34. Rc2 {[%emt 0:00:44]} Ke6 {[%emt 0:01:20]} 35. Kg1 {[%emt 0:01:09]} Kd6 {[%emt 0:02:11]} 36. Kf2 {[%emt 0:00:05]} Kc5 {[%emt 0:00:32]} 37. Rcxb2 {[%emt 0:00:44]} Rxb2+ {[%emt 0:00:06]} 38. Rxb2 {[%emt 0:00:03]} d4 {[%emt 0:00:05]} 39. a4 {[%emt 0:00:49]} c3 {[%emt 0:02:19]} 40. Rb5+ {[%emt 0:00:19]} Kc4 {[%emt 0:00:09]} 41. Rxe5 {[%emt 0:01:24]} fxe5 {[%emt 0:00:06]} 42. Ke2 {[%emt 0:00:30]} Kb3 {[%emt 0:00:13]} 43. Kd3 {[%emt 0:01:22]} Kxa4 {[%emt 0:09:58]} 44. Ne2 {[%emt 0:00:08]} Kb4 {[%emt 0:00:12]} 45. Nc1 {[%emt 0:00:52]} Kc5 {[%emt 0:00:36]} 46. Ke4 {[%emt 0:00:20]} Kd6 {[%emt 0:03:23]} 47. Nd3 {[%emt 0:00:05]} c2 {[%emt 0:00:47]} 48. Nc1 {[%emt 0:00:15]} h5 {[%emt 0:00:04]} 49. Kd3 {[%emt 0:01:20]} h4 {[%emt 0:01:04]} 50. Kxc2 {[%emt 0:00:08]} e4 {[%emt 0:00:39]} 51. Kd2 {[%emt 0:00:28]} Ke5 {[%emt 0:02:32]} 52. Nb3 {[%emt 0:01:20]} Kd5 {[%emt 0:03:28]} 53. Na5 {[%emt 0:00:20]} Kc5 {[%emt 0:00:19]} 54. Nb7+ {[%emt 0:00:11]} Kd5 {[%emt 0:00:08]} 55. Nd8 {[%emt 0:00:05]} Ke5 {[%emt 0:00:41]} 56. Nc6+ {[%emt 0:00:04]} Kf4 {[%emt 0:00:38]} 57. Nxd4 {[%emt 0:00:30]} Kg3 {[%emt 0:00:01]} 58. Ne6 {[%emt 0:00:32]} Kxg2 {[%emt 0:00:08]} 59. Ng5 {[%emt 0:00:07]} Kf2 {[%emt 0:01:54]} 60. Nxe4+ {[%emt 0:00:05]} Kf3 {[%emt 0:00:05]} 61. Kd3 {[%emt 0:00:04]} Kf4 {[%emt 0:04:11]} 62. Kd4 {[%emt 0:00:06]} Kf3 {[%emt 0:00:24]} 63. Ke5 {[%emt 0:00:07]} Ke3 {[%emt 0:00:08]} 64. Ng5 {[%emt 0:00:24]} Kf2 {[%emt 0:01:07]} 65. Ke4 1-0

[Event "26th Abu Dhabi Master 2019"]
[Site "Abu Dhabi"]
[Date "2019.08.07"]
[Round "6.51"]
[White "Srihari L R"]
[Black "Divya Deshmukh"]
[Result "1/2-1/2"]
[ECO "E16"]
[WhiteElo "2227"]
[BlackElo "2373"]
[Annotator "NA"]
[PlyCount "54"]
[EventDate "2019.08.02"]
[EventType "swiss"]
[EventCountry "UAE"]
[SourceTitle "playchess.com"]
[Source "ChessBase"]
[SourceQuality "1"]
[TimeControl "5400+30"]

1. Nf3 Nf6 2. c4 e6 3. d4 Bb4+ 4. Bd2 Qe7 5. g3 Nc6 6. Nc3 O-O 7. Bg2 Bxc3 8. Bxc3 Ne4 9. Rc1 d6 10. O-O Nxc3 11. Rxc3 a5 12. a3 e5 13. d5 Nb8 14. b4 Na6 15. Qb1 Bd7 16. Rfc1 axb4 17. axb4 c5 18. dxc6 bxc6 19. Nd2 Rab8 20. Rb3 Nc7 21. e3 Rfd8 22. Qb2 Be8 23. Bf1 Rb6 24. c5 dxc5 25. bxc5 Rxb3 26. Nxb3 Rb8 27. Qc2 Ne6 1/2-1/2

[Event "26th Abu Dhabi Master 2019"]
[Site "Abu Dhabi"]
[Date "2019.08.07"]
[Round "6.52"]
[White "Dixit, Nikhil"]
[Black "Eynullayev, Altay"]
[Result "0-1"]
[ECO "B94"]
[WhiteElo "2318"]
[BlackElo "2188"]
[Annotator "NA"]
[PlyCount "93"]
[EventDate "2019.08.02"]
[EventType "swiss"]
[EventCountry "UAE"]
[SourceTitle "playchess.com"]
[Source "ChessBase"]
[SourceQuality "1"]
[TimeControl "5400+30"]

1. e4 c5 2. Nf3 d6 3. d4 cxd4 4. Nxd4 Nf6 5. Nc3 a6 6. Bg5 Nbd7 7. Bc4 Qb6 8. Bb3 e6 9. Bxf6 Nxf6 10. Qd2 g6 11. O-O-O Bd7 12. f4 Bh6 13. Nde2 O-O-O 14. Kb1 Bc6 15. Qd3 Bg7 16. Nd4 Ng4 17. Nxc6 Nf2 18. Nxd8 Nxd3 19. Nxf7 Nf2 20. Rxd6 Qc5 21. Re1 Bxc3 22. bxc3 Rf8 23. Rd2 Qxc3 24. Ree2 Nxe4 25. Rd3 Qxd3 26. cxd3 Nc3+ 27. Kb2 Nxe2 28. Bxe6+ Kc7 29. g3 Re8 30. Bd5 Nd4 31. Kc3 Nc6 32. Be4 b5 33. Ng5 Re7 34. g4 Kd6 35. f5 gxf5 36. gxf5 Ne5 37. Kd4 Ng4 38. Ne6 Nxh2 39. Nc5 Ng4 40. Nxa6 h5 41. Bf3 Re5 42. Nc7 Kxc7 43. Bxg4 hxg4 44. Kxe5 g3 45. f6 Kd7 46. f7 Ke7 47. Kd4 0-1

[Event "26th Abu Dhabi Master 2019"]
[Site "Abu Dhabi"]
[Date "2019.08.07"]
[Round "6.53"]
[White "Panda Sambit"]
[Black "Zhang, Xiaowen"]
[Result "1/2-1/2"]
[ECO "D56"]
[WhiteElo "2126"]
[BlackElo "2318"]
[Annotator "NA"]
[PlyCount "39"]
[EventDate "2019.08.02"]
[EventType "swiss"]
[EventCountry "UAE"]
[SourceTitle "playchess.com"]
[Source "ChessBase"]
[SourceQuality "1"]
[TimeControl "5400+30"]

1. d4 {[%emt 0:00:03]} d5 {[%emt 0:00:24]} 2. c4 {[%emt 0:01:20]} e6 {[%emt 0:00:09]} 3. Nf3 {[%emt 0:00:12]} Nf6 {[%emt 0:00:51]} 4. Bg5 {[%emt 0:00:11]} Be7 {[%emt 0:01:18]} 5. Nc3 {[%emt 0:00:08]} h6 {[%emt 0:00:12]} 6. Bh4 {[%emt 0:00:01]} O-O {[%emt 0:00:12]} 7. e3 {[%emt 0:00:22]} Ne4 {[%emt 0:01:17]} 8. Bxe7 {[%emt 0:00:07]} Qxe7 {[%emt 0:00:05]} 9. Rc1 {[%emt 0:00:06]} c6 {[%emt 0:00:21]} 10. Bd3 {[%emt 0:00:05]} Nxc3 {[%emt 0:00:10]} 11. Rxc3 {[%emt 0:00:03]} Nd7 {[%emt 0:05:08]} 12. O-O {[%emt 0:01:04]} e5 {[%emt 0:15:11]} 13. dxe5 {[%emt 0:14:05]} dxc4 {[%emt 0:00:17]} 14. Rxc4 {[%emt 0:03:38]} Nxe5 {[%emt 0:00:20]} 15. Re4 {[%emt 0:01:09]} Nxf3+ {[%emt 0:00:49]} 16. Qxf3 {[%emt 0:01:33]} Be6 {[%emt 0:06:31]} 17. Bc4 {[%emt 0:09:20]} Rad8 {[%emt 0:01:26]} 18. Bxe6 {[%emt 0:06:57]} fxe6 {[%emt 0:00:05]} 19. Qe2 {[%emt 0:00:07]} Rd5 {[%emt 0:03:21]} 20. Rd1 {[%emt 0:08:02]} 1/2-1/2

[Event "26th Abu Dhabi Master 2019"]
[Site "Abu Dhabi"]
[Date "2019.08.07"]
[Round "6.54"]
[White "Gajwa Ankit"]
[Black "Al Hosani, Omran"]
[Result "1/2-1/2"]
[ECO "B52"]
[WhiteElo "2302"]
[BlackElo "2135"]
[Annotator "NA"]
[PlyCount "96"]
[EventDate "2019.08.02"]
[EventType "swiss"]
[EventCountry "UAE"]
[SourceTitle "playchess.com"]
[Source "ChessBase"]
[SourceQuality "1"]
[TimeControl "5400+30"]

1. e4 c5 2. Nf3 d6 3. Bb5+ Bd7 4. Bxd7+ Qxd7 5. c4 Nf6 6. Nc3 Nc6 7. d4 cxd4 8. Nxd4 Qg4 9. Qxg4 Nxg4 10. Nxc6 bxc6 11. Bf4 Rg8 12. h3 Nf6 13. e5 g5 14. Bh2 dxe5 15. Bxe5 Nd7 16. Bd4 e5 17. Be3 Bb4 18. Kd2 f5 19. Kc2 Kf7 20. Rad1 Ke6 21. Rhe1 f4 22. Bd2 Bc5 23. Ne4 Bd4 24. b4 Nf6 25. Bc3 Bxc3 26. Kxc3 Nxe4+ 27. Rxe4 Kf5 28. Rde1 Rae8 29. g4+ Kf6 30. c5 h5 31. a4 hxg4 32. hxg4 a6 33. b5 axb5 34. axb5 cxb5 35. Kb4 Re6 36. Kxb5 Rb8+ 37. Kc4 Ra8 38. R1e2 Rc8 39. Rd2 Ra8 40. Rb2 Rc8 41. Rb5 Ra6 42. Re2 Ra4+ 43. Rb4 Rxb4+ 44. Kxb4 Ke6 45. Rd2 e4 46. Kc4 e3 47. fxe3 fxe3 48. Rd3 Ke5 1/2-1/2

[Event "26th Abu Dhabi Master 2019"]
[Site "Abu Dhabi"]
[Date "2019.08.07"]
[Round "6.55"]
[White "Eynullayev, Atilla"]
[Black "Panesar Vedant"]
[Result "1/2-1/2"]
[ECO "B12"]
[WhiteElo "2228"]
[BlackElo "2092"]
[Annotator "NA"]
[PlyCount "116"]
[EventDate "2019.08.02"]
[EventType "swiss"]
[EventCountry "UAE"]
[SourceTitle "playchess.com"]
[Source "ChessBase"]
[SourceQuality "1"]
[TimeControl "5400+30"]

1. e4 {[%emt 0:00:00]} c6 {[%emt 0:01:17]} 2. d4 {[%emt 0:00:00]} d5 {[%emt 0:00:03]} 3. e5 {[%emt 0:00:00]} Bf5 {[%emt 0:00:20]} 4. Bd3 {[%emt 0:00:00]} Bxd3 {[%emt 0:00:25]} 5. Qxd3 {[%emt 0:00:02]} e6 {[%emt 0:00:06]} 6. Ne2 {[%emt 0:00:04]} Qa5+ {[%emt 0:08:49]} 7. c3 {[%emt 0:00:32]} Qa6 {[%emt 0:01:26]} 8. Qf3 {[%emt 0:00:05]} Ne7 {[%emt 0:02:00]} 9. O-O {[%emt 0:00:37]} Nd7 {[%emt 0:00:20]} 10. Re1 {[%emt 0:02:37]} c5 {[%emt 0:03:12]} 11. Nd2 {[%emt 0:03:28]} Nc6 {[%emt 0:01:47]} 12. a3 {[%emt 0:01:46]} Rc8 {[%emt 0:04:29]} 13. Rb1 {[%emt 0:03:46]} Qb6 {[%emt 0:22:00]} 14. Qd3 {[%emt 0:02:21]} a5 {[%emt 0:01:08]} 15. Ra1 {[%emt 0:12:41]} a4 {[%emt 0:02:53]} 16. Nf3 {[%emt 0:03:59]} Na5 {[%emt 0:01:02]} 17. Nf4 {[%emt 0:05:34]} Be7 {[%emt 0:11:01]} 18. Rb1 {[%emt 0:16:01]} cxd4 {[%emt 0:07:37]} 19. cxd4 {[%emt 0:01:38]} Qb3 {[%emt 0:00:51]} 20. Bd2 {[%emt 0:05:14]} Qxd3 {[%emt 0:01:12]} 21. Nxd3 {[%emt 0:01:55]} Nb3 {[%emt 0:00:02]} 22. Bb4 {[%emt 0:01:55]} Rc4 {[%emt 0:07:27]} 23. Bc3 {[%emt 0:14:51]} Bxa3 {[%emt 0:05:14]} 24. Nc1 {[%emt 0:01:19]} Nxc1 {[%emt 0:05:27]} 25. Rexc1 {[%emt 0:01:42]} Be7 {[%emt 0:00:05]} 26. b3 {[%emt 0:07:16]} axb3 {[%emt 0:00:01]} 27. Rxb3 {[%emt 0:00:01]} b6 {[%emt 0:00:01]} 28. Ra1 {[%emt 0:00:51]} O-O {[%emt 0:00:14]} 29. Bd2 {[%emt 0:01:30]} Rc7 {[%emt 0:00:19]} 30. Kf1 {[%emt 0:00:21]} h6 {[%emt 0:01:13]} 31. Ke2 {[%emt 0:02:53]} Kh7 {[%emt 0:00:34]} 32. Ne1 {[%emt 0:01:17]} f6 {[%emt 0:00:43]} 33. f4 {[%emt 0:00:30]} fxe5 {[%emt 0:01:52]} 34. fxe5 {[%emt 0:00:06]} g5 {[%emt 0:00:59]} 35. h3 {[%emt 0:00:25]} Kg6 {[%emt 0:00:19]} 36. Ra2 {[%emt 0:00:57]} Rfc8 {[%emt 0:02:05]} 37. Ra1 {[%emt 0:00:47]} Bf8 {[%emt 0:00:39]} 38. Nf3 {[%emt 0:01:25]} Rb7 {[%emt 0:01:15]} 39. Rb5 {[%emt 0:00:09]} Be7 {[%emt 0:00:27]} 40. Ne1 {[%emt 0:01:51]} h5 {[%emt 0:00:28]} 41. Nd3 {[%emt 0:00:43]} Rf8 {[%emt 0:01:51]} 42. Ne1 {[%emt 0:01:47]} Rc7 {[%emt 0:00:10]} 43. Ra2 {[%emt 0:02:52]} Rf7 {[%emt 0:00:01]} 44. Ra1 {[%emt 0:00:42]} Bf8 {[%emt 0:00:01]} 45. Be3 {[%emt 0:00:21]} Bh6 {[%emt 0:00:17]} 46. Ra3 {[%emt 0:00:59]} Rc4 {[%emt 0:00:21]} 47. Ra8 {[%emt 0:00:56]} Bf8 {[%emt 0:00:30]} 48. Nd3 {[%emt 0:01:02]} Rc2+ {[%emt 0:00:01]} 49. Bd2 {[%emt 0:00:06]} Rc4 {[%emt 0:00:53]} 50. Be3 {[%emt 0:00:05]} Rc7 {[%emt 0:00:28]} 51. Bd2 {[%emt 0:01:34]} Kf5 {[%emt 0:00:51]} 52. Nf2 {[%emt 0:00:48]} Kg6 {[%emt 0:00:01]} 53. Nd3 {[%emt 0:00:05]} Rb7 {[%emt 0:02:17]} 54. Re8 {[%emt 0:00:50]} Re7 {[%emt 0:00:11]} 55. Ra8 {[%emt 0:00:07]} Rf7 {[%emt 0:01:03]} 56. Re8 {[%emt 0:00:05]} Re7 {[%emt 0:00:56]} 57. Ra8 {[%emt 0:00:05]} Rf7 58. Re8 Be7 1/2-1/2

[Event "26th Abu Dhabi Master 2019"]
[Site "Abu Dhabi"]
[Date "2019.08.07"]
[Round "6.56"]
[White "Bhambure, Shantanu"]
[Black "Vatsal Singhania"]
[Result "1/2-1/2"]
[ECO "D31"]
[WhiteElo "2275"]
[BlackElo "2213"]
[Annotator "NA"]
[PlyCount "118"]
[EventDate "2019.08.02"]
[EventType "swiss"]
[EventCountry "UAE"]
[SourceTitle "playchess.com"]
[Source "ChessBase"]
[SourceQuality "1"]
[TimeControl "5400+30"]

1. d4 d5 2. c4 e6 3. Nc3 Bb4 4. cxd5 exd5 5. Bf4 Nf6 6. e3 O-O 7. Bd3 c5 8. dxc5 Nc6 9. Nge2 Bxc5 10. O-O Be6 11. Rc1 a6 12. Bb1 d4 13. Ne4 Nxe4 14. Bxe4 Bb6 15. Bxc6 bxc6 16. exd4 Qd5 17. b3 Rfe8 18. Be3 Bg4 19. Nf4 Qd7 20. Qd2 Rad8 21. h3 Bf5 22. Rfd1 Re4 23. d5 Bxe3 24. fxe3 cxd5 25. Qxd5 g6 26. Qxd7 Rxd7 27. Rxd7 Bxd7 28. Rc7 Bf5 29. g4 Be6 30. Kf2 Re5 31. Kf3 Bd5+ 32. Nxd5 Rxd5 33. Rc6 a5 34. Ra6 h5 35. a4 hxg4+ 36. hxg4 Kg7 37. Rb6 Rd2 38. Rb5 Rb2 39. g5 Rb1 40. Ke4 f5+ 41. Ke5 Re1 42. Rb7+ Kf8 43. Kf6 Rxe3 44. Kxg6 f4 45. Kf6 f3 46. g6 Re8 47. Rf7+ Kg8 48. Rg7+ Kf8 49. Rf7+ Kg8 50. Rg7+ Kf8 51. Rh7 Kg8 52. Rh1 Rf8+ 53. Kg5 f2 54. Rf1 Rf3 55. Kg4 Rxb3 56. Rxf2 Rb4+ 57. Kg5 Rxa4 58. Rc2 Ra1 59. Kf6 Rf1+ 1/2-1/2

[Event "26th Abu Dhabi Master 2019"]
[Site "Abu Dhabi"]
[Date "2019.08.07"]
[Round "6.57"]
[White "Ashraf, Artin"]
[Black "Ajay Krishna, S."]
[Result "1-0"]
[ECO "A37"]
[WhiteElo "2141"]
[BlackElo "2280"]
[Annotator "NA"]
[PlyCount "112"]
[EventDate "2019.08.02"]
[EventType "swiss"]
[EventCountry "UAE"]
[SourceTitle "playchess.com"]
[Source "ChessBase"]
[SourceQuality "1"]
[TimeControl "5400+30"]

1. Nf3 {[%emt 0:00:54]} c5 {[%emt 0:00:48]} 2. c4 {[%emt 0:01:04]} Nc6 {[%emt 0:00:20]} 3. Nc3 {[%emt 0:01:04]} g6 {[%emt 0:00:19]} 4. g3 {[%emt 0:00:23]} Bg7 {[%emt 0:00:08]} 5. Bg2 {[%emt 0:00:37]} d6 {[%emt 0:00:08]} 6. O-O {[%emt 0:01:15]} e6 {[%emt 0:00:13]} 7. d3 {[%emt 0:06:22]} Nge7 {[%emt 0:00:51]} 8. Bd2 {[%emt 0:02:50]} O-O {[%emt 0:00:28]} 9. a3 {[%emt 0:00:43]} h6 {[%emt 0:27:53]} 10. Rb1 {[%emt 0:04:03]} b6 {[%emt 0:01:57]} 11. Qc1 {[%emt 0:03:46]} Kh7 {[%emt 0:02:09]} 12. b4 {[%emt 0:03:38]} Rb8 {[%emt 0:00:26]} 13. Na2 {[%emt 0:10:22]} e5 {[%emt 0:12:59]} 14. a4 {[%emt 0:14:33]} Be6 {[%emt 0:11:17]} 15. Qc2 {[%emt 0:18:02]} Qd7 {[%emt 0:09:11]} 16. a5 {[%emt 0:04:05]} bxa5 {[%emt 0:05:59]} 17. bxa5 {[%emt 0:08:56]} Qc7 {[%emt 0:08:08]} 18. Qa4 {[%emt 0:01:21]} Rxb1 {[%emt 0:00:34]} 19. Rxb1 {[%emt 0:00:25]} Rb8 {[%emt 0:00:11]} 20. Rxb8 {[%emt 0:03:34]} Qxb8 {[%emt 0:00:16]} 21. Qc2 {[%emt 0:00:45]} Qc7 {[%emt 0:05:06]} 22. Qa4 {[%emt 0:01:48]} Bd7 {[%emt 0:00:11]} 23. h4 {[%emt 0:00:52]} Nd4 {[%emt 0:01:33]} 24. Qd1 {[%emt 0:00:32]} Bg4 {[%emt 0:00:18]} 25. Nxd4 {[%emt 0:01:07]} exd4 {[%emt 0:00:08]} 26. Kf1 {[%emt 0:01:02]} Bd7 {[%emt 0:07:23]} 27. Nc1 {[%emt 0:03:27]} Bc6 {[%emt 0:00:19]} 28. Qb3 {[%emt 0:00:57]} f6 {[%emt 0:02:41]} 29. Bxc6 {[%emt 0:00:51]} Qxc6 {[%emt 0:00:40]} 30. Kg1 {[%emt 0:00:10]} g5 {[%emt 0:00:01]} 31. hxg5 {[%emt 0:01:03]} fxg5 {[%emt 0:00:09]} 32. Qb8 {[%emt 0:00:30]} a6 {[%emt 0:01:14]} 33. Qb6 {[%emt 0:00:36]} Kg6 {[%emt 0:00:18]} 34. e4 {[%emt 0:01:24]} dxe3 {[%emt 0:00:31]} 35. Bxe3 {[%emt 0:00:28]} Kf7 {[%emt 0:00:27]} 36. Nb3 {[%emt 0:01:09]} Qxb6 {[%emt 0:01:40]} 37. axb6 {[%emt 0:00:32]} Nc6 {[%emt 0:00:01]} 38. b7 {[%emt 0:00:55]} Ke8 {[%emt 0:00:43]} 39. d4 {[%emt 0:01:00]} cxd4 {[%emt 0:00:06]} 40. Bxd4 {[%emt 0:00:28]} Bxd4 {[%emt 0:00:01]} 41. Nxd4 {[%emt 0:00:16]} Nb8 {[%emt 0:00:01]} 42. Nf5 {[%emt 0:00:41]} a5 {[%emt 0:01:32]} 43. Nxd6+ {[%emt 0:01:00]} Kd7 {[%emt 0:00:01]} 44. Ne4 {[%emt 0:00:34]} Kc6 {[%emt 0:00:01]} 45. f4 {[%emt 0:00:17]} gxf4 {[%emt 0:00:07]} 46. gxf4 {[%emt 0:00:08]} Kxb7 {[%emt 0:00:12]} 47. f5 {[%emt 0:00:56]} Kc6 {[%emt 0:00:01]} 48. f6 {[%emt 0:00:54]} a4 {[%emt 0:00:01]} 49. f7 {[%emt 0:00:50]} Nd7 {[%emt 0:00:01]} 50. Nc3 {[%emt 0:00:53]} a3 {[%emt 0:00:01]} 51. Kf2 {[%emt 0:00:21]} Kc5 {[%emt 0:00:30]} 52. Na4+ {[%emt 0:00:39]} Kd4 {[%emt 0:00:10]} 53. c5 {[%emt 0:00:17]} a2 {[%emt 0:00:45]} 54. c6 {[%emt 0:00:13]} a1=Q {[%emt 0:00:12]} 55. cxd7 {[%emt 0:00:18]} Qa2+ {[%emt 0:00:05]} 56. Kg1 {[%emt 0:00:22]} Qb1+ {[%emt 0:00:09]} 1-0

[Event "26th Abu Dhabi Master 2019"]
[Site "Abu Dhabi"]
[Date "2019.08.07"]
[Round "6.58"]
[White "Aaryan Varshney"]
[Black "Soham Kamotra"]
[Result "1/2-1/2"]
[ECO "E15"]
[WhiteElo "2284"]
[BlackElo "2136"]
[Annotator "NA"]
[PlyCount "70"]
[EventDate "2019.08.02"]
[EventType "swiss"]
[EventCountry "UAE"]
[SourceTitle "playchess.com"]
[Source "ChessBase"]
[SourceQuality "1"]
[TimeControl "5400+30"]

1. d4 {[%emt 0:00:00]} Nf6 {[%emt 0:00:00]} 2. Nf3 {[%emt 0:00:28]} e6 {[%emt 0:00:01]} 3. c4 {[%emt 0:00:19]} b6 {[%emt 0:00:06]} 4. g3 {[%emt 0:00:09]} Ba6 {[%emt 0:00:06]} 5. b3 {[%emt 0:00:12]} Bb7 {[%emt 0:00:05]} 6. Bg2 {[%emt 0:00:14]} Bb4+ {[%emt 0:00:05]} 7. Bd2 {[%emt 0:00:15]} c5 {[%emt 0:00:04]} 8. O-O {[%emt 0:00:26]} O-O {[%emt 0:00:07]} 9. Bxb4 {[%emt 0:03:28]} cxb4 {[%emt 0:00:05]} 10. a3 {[%emt 0:00:22]} Qe7 {[%emt 0:01:21]} 11. axb4 {[%emt 0:01:17]} Qxb4 {[%emt 0:00:10]} 12. Ra4 {[%emt 0:05:36]} Qe7 {[%emt 0:00:23]} 13. Nc3 {[%emt 0:00:18]} d5 {[%emt 0:08:46]} 14. Qa1 {[%emt 0:05:36]} Nc6 {[%emt 0:09:26]} 15. Qb2 {[%emt 0:05:21]} a5 {[%emt 0:00:23]} 16. Rc1 {[%emt 0:00:51]} Rfc8 {[%emt 0:07:51]} 17. Raa1 {[%emt 0:03:58]} Ba6 {[%emt 0:05:54]} 18. e3 {[%emt 0:06:49]} Nb4 {[%emt 0:08:48]} 19. Ne5 {[%emt 0:01:35]} Rab8 {[%emt 0:00:37]} 20. cxd5 {[%emt 0:03:30]} Nfxd5 {[%emt 0:03:04]} 21. Nxd5 {[%emt 0:01:51]} exd5 {[%emt 0:00:03]} 22. Bh3 {[%emt 0:01:35]} Rc7 {[%emt 0:05:00]} 23. Rxc7 {[%emt 0:01:13]} Qxc7 {[%emt 0:00:03]} 24. Rc1 {[%emt 0:00:36]} Qd6 {[%emt 0:00:13]} 25. Qa3 {[%emt 0:04:05]} Bb5 {[%emt 0:04:52]} 26. Bf1 {[%emt 0:02:06]} f6 {[%emt 0:02:01]} 27. Nd3 {[%emt 0:10:43]} Bxd3 {[%emt 0:00:52]} 28. Bxd3 {[%emt 0:00:02]} Qd7 {[%emt 0:01:30]} 29. Be2 {[%emt 0:02:45]} Rc8 {[%emt 0:00:53]} 30. Rxc8+ {[%emt 0:00:47]} Qxc8 {[%emt 0:00:02]} 31. Qa4 {[%emt 0:00:25]} Kf7 {[%emt 0:03:19]} 32. Kg2 {[%emt 0:01:14]} Ke7 {[%emt 0:01:37]} 33. Qb5 {[%emt 0:01:31]} Qe6 {[%emt 0:02:16]} 34. Bf3 {[%emt 0:02:07]} f5 {[%emt 0:04:22]} 35. h4 {[%emt 0:01:48]} g6 {[%emt 0:00:03]} 1/2-1/2

[Event "26th Abu Dhabi Master 2019"]
[Site "Abu Dhabi"]
[Date "2019.08.07"]
[Round "6.59"]
[White "Tarini Goyal"]
[Black "Priyanka Nutakki"]
[Result "1-0"]
[ECO "A40"]
[WhiteElo "2038"]
[BlackElo "2293"]
[Annotator "NA"]
[PlyCount "67"]
[EventDate "2019.08.02"]
[EventType "swiss"]
[EventCountry "UAE"]
[SourceTitle "playchess.com"]
[Source "ChessBase"]
[SourceQuality "1"]
[TimeControl "5400+30"]

1. d4 Nf6 2. c4 e6 3. g3 c5 4. Nf3 cxd4 5. Nxd4 Bb4+ 6. Nc3 Ne4 7. Qd3 Nxc3 8. bxc3 Be7 9. Bg2 O-O 10. O-O d6 11. Rd1 a6 12. Rb1 Qc7 13. Be3 Nd7 14. Nf3 Rd8 15. Ng5 g6 16. Qe4 Re8 17. Qh4 Nf8 18. Bb6 Qb8 19. Qh6 e5 20. Be3 Bf6 21. Bd5 Re7 22. c5 Bg7 23. Qh4 h6 24. cxd6 Rd7 25. Nxf7 Rxf7 26. Qc4 b5 27. Bxf7+ Kh7 28. Qc7 Bf5 29. Qxb8 Rxb8 30. Rbc1 Nd7 31. c4 bxc4 32. Rxc4 Rb2 33. Rc7 Nf6 34. d7 1-0